lending/lending_fUSD_20250411
["ID","MTS","AMOUNT","RATE_DAILY","PERIOD"]
[357732080,1744398640502,-1234.39,0.00037003,5]
[357732081,1744398640511,-1243.0,0.00037003,5]
[357732082,1744398640520,-1237.63,0.00037003,5]
[357732083,1744398640529,-268.67064981,0.000372,103]
[357732084,1744398640539,-268.67064981,0.000372,103]
[357732085,1744398640548,-238.89,0.00037205,30]
[357732086,1744398640558,-2680.67188122,0.0003759,2]
[357732087,1744398640779,-305.45798543,0.0003759,2]
[357732155,1744398644271,-1852.42,0.00036239,2]
[357732156,1744398644281,-1207.62936329,0.0003759,2]
[357732157,1744398644291,-402.91605,0.000376,120]
[357732158,1744398644300,-1.85605888,0.00037651,2]
[357732159,1744398644312,-860.2594829,0.00037651,2]
[357732160,1744398644324,-586.30445822,0.00037651,2]
[357732161,1744398644334,-166.66,0.00037694,2]
[357732162,1744398644344,-2000.0,0.00037781,4]
[357732163,1744398644354,-209.0,0.0003779,30]
[357732164,1744398644364,-48.45232021,0.000378,2]
[357732173,1744398646194,-669.9878527,0.00025138,2]
[357732175,1744398646204,-119.52073983,0.000378,2]
[357732176,1744398646214,-446.0,0.00037896,5]
[357732177,1744398646385,-336.0,0.00037896,5]
[357732178,1744398646395,-5048.75406271,0.00037903,2]
[357732179,1744398646406,-380.12402923,0.00037943,2]
[357732180,1744398646416,-268.67064981,0.00037984,108]
[357732181,1744398646426,-150.0,0.00037999,3]
[357732182,1744398646436,-36245.45910304,0.00038,14]
[357732183,1744398646447,-79130.55774181,0.00038,2]
[357732184,1744398646459,-489.22651,0.00038,2]
[357732198,1744399510377,-358.42,0.0002,2]
[357732199,1744399514677,-157.98384103,0.0002,2]
[357732200,1744399519632,-169.49399979,0.0002,2]
[357732201,1744399523374,-150.0,0.0002,2]
[357732202,1744399533343,-150.0,0.000199,2]
[357732203,1744399538257,-227.30653961,0.00019,2]
[357732204,1744399562699,-187.13314286,0.00019,2]
[357732205,1744399572278,-349.52598013,0.00019,2]
[357732206,1744399594294,-201.77327109,0.00019,2]
[357732207,1744399596751,-169.86617587,0.00019,2]
[357732209,1744399616000,-150.51640522,0.00019,2]
[357732210,1744399619205,-220.36884451,0.00019,2]
[357732211,1744399623464,-300.0,0.00019,2]
[357732212,1744399625711,-335.9513716,0.00019,2]
[357732213,1744399634308,-378.67938289,0.00019,2]
[357732214,1744399635629,-311.36924551,0.00019,2]
[357732215,1744399640628,-500.0,0.00019,2]
[357732216,1744399643838,-404.48567649,0.00019,2]
[357732218,1744399682981,-154.13364746,0.00019,2]
[357732219,1744399704487,-150.0,0.00019,2]
[357732220,1744399711803,-222.67521801,0.00019,2]
[357732221,1744399719046,656.8,0.000149,2]
[357732245,1744399730300,-627.61649703,0.00019,2]
[357732247,1744399744120,-250.0,0.00019,2]
[357732252,1744399751378,-222.04033261,0.00019,2]
[357732253,1744399753080,-35.02714538,0.00019,2]
[357732254,1744399753102,-129.10285462,0.00019773,2]
[357732255,1744399756619,-164.13,0.00019773,2]
[357732259,1744399789294,-305.01,0.00019773,2]
[357732260,1744399800035,-152.03546072,0.00019773,2]
[357732261,1744399802998,-391.96453928,0.00019773,2]
[357732262,1744399806286,-152.07901051,0.00019773,2]
[357732263,1744399815036,-305.81,0.00019873,2]
[357732264,1744399822695,-47.59319333,0.00019873,2]
[357732265,1744399822718,-378.67938289,0.00019873,2]
[357732266,1744399822741,-373.75245255,0.00019873,2]
[357732267,1744399830010,-141.150463,0.00019873,2]
[357732268,1744399830037,-8.849537,0.00019873,2]
[357732274,1744399832304,-272.0628384,0.00019873,2]
[357732277,1744399832366,-355.44606993,0.00019873,2]
[357732279,1744399832375,-229.26148599,0.00019899,2]
[357732280,1744399832476,-70.73851401,0.00019899,2]
[357732281,1744399832488,-1906.85453412,0.000199,2]
[357732282,1744399832501,-251.92214903,0.000199,2]
[357732292,1744399833194,-154.15,0.000199,2]
[357732330,1744399838466,-112554.34641178,0.000199,2]
[357732331,1744399838525,-87.38550123,0.000199,2]
[357732332,1744399838534,-154.69137993,0.000199,2]
[357732333,1744399838544,-172.0626204,0.000199,3]
[357732334,1744399838554,-4.28549844,0.000199,2]
[357732335,1744399838565,-33323.23226509,0.000199,2]
[357732336,1744399838575,-965.15400916,0.000199,2]
[357732337,1744399838584,-578.05390483,0.000199,2]
[357732338,1744399838594,-500.0,0.00019973,2]
[357732339,1744399838603,-500.0,0.00019973,2]
[357732340,1744399838612,-500.0,0.00019973,2]
[357732341,1744399838621,-500.0,0.00019973,2]
[357732342,1744399838630,-283.73,0.0001999,2]
[357732343,1744399838639,-283.73,0.0001999,2]
[357732344,1744399838649,-283.73,0.0001999,2]
[357732345,1744399838658,-283.73,0.0001999,2]
[357732346,1744399838667,-283.73,0.0001999,2]
[357732347,1744399838678,-283.73,0.0001999,2]
[357732348,1744399838687,-283.73,0.0001999,2]
[357732349,1744399838697,-283.73,0.0001999,2]
[357732350,1744399838706,-283.73,0.0001999,2]
[357732351,1744399838715,-283.73,0.0001999,2]
[357732352,1744399838725,-171.04043135,0.0001999,2]
[357732353,1744399838734,-1000.0,0.00019999,2]
[357732354,1744399838743,-150.0,0.00019999,2]
[357732355,1744399838753,-155.45592761,0.00019999,2]
[357732356,1744399838762,-201.77327109,0.00019999,2]
[357732357,1744399838772,-500.0,0.00019999,2]
[357732358,1744399838781,-500.0,0.00019999,2]
[357732359,1744399838790,-500.0,0.00019999,2]
[357732360,1744399838799,-500.0,0.00019999,2]
[357732361,1744399838807,-66.78311656,0.00019999,2]
[357732363,1744399838819,-182.77810841,0.00019999,2]
[357732365,1744399838828,-500.0,0.00019999,2]
[357732367,1744399838837,-500.0,0.00019999,2]
[357732368,1744399838848,-500.0,0.00019999,2]
[357732370,1744399838857,-457.82025839,0.00019999,2]
[357732372,1744399838865,-500.0,0.00019999,2]
[357732374,1744399838874,-342.78923917,0.00019999,2]
[357732376,1744399838885,-157.21076083,0.00019999,2]
[357732378,1744399838895,-500.0,0.00019999,2]
[357732380,1744399838904,-550.0,0.00019999,2]
[357732382,1744399838913,-500.0,0.00019999,2]
[357732384,1744399838922,-53.06035587,0.00019999,2]
[357732386,1744399838933,-446.93964413,0.00019999,2]
[357732388,1744399838943,-500.0,0.00019999,2]
[357732390,1744399838959,-500.0,0.00019999,2]
[357732392,1744399838975,-500.0,0.00019999,2]
[357732394,1744399838985,-500.0,0.00019999,2]
[357732396,1744399838998,-31959.85125943,0.0002,2]
[357732398,1744399839010,-476.43552863,0.0002,2]
[357732404,1744399839063,-171.04043135,0.0002,2]
[357732415,1744399839741,-249.56122497,0.000198,2]
[357732456,1744399840523,-577.61986028,0.000198,2]
[357732458,1744399840533,-645.63896435,0.0002,2]
[357732474,1744399840743,-1730.84596,0.0002,2]
[357732487,1744399840855,-136455.83362295,0.0002,2]
[357732589,1744399841489,-8372.33,0.0002,2]
[357732660,1744399841954,-431.80956865,0.0002,2]
[357732719,1744399843213,-182.24834368,0.0002,2]
[357732720,1744399843376,-4466.61170662,0.0002,2]
[357732721,1744399843435,-233654.75281814,0.0002,2]
[357732774,1744399846494,-1192.5675744,0.0002,2]
[357732775,1744399846507,-1016.57656816,0.0002,2]
[357732776,1744399846570,-385.99236003,0.0002,2]
[357732777,1744399846616,-693.20000004,0.0002,2]
[357732778,1744399846627,-130484.43373903,0.0002,2]
[357732794,1744399850731,-259.27582578,0.000199,2]
[357732795,1744399859489,-152.58,0.000199,2]
[357732796,1744399872581,-167.45018124,0.000199,2]
[357732797,1744399914028,-152.58,0.000199,2]
[357732798,1744399914684,-152.58,0.000199,2]
[357732799,1744399922484,-152.58,0.00019,2]
[357732800,1744399930846,-97.42,0.00019,2]
[357732801,1744399930869,-153.58399298,0.000199,2]
[357732802,1744399940301,-523.15399298,0.000199,2]
[357732803,1744399944980,-938.79600702,0.000199,2]
[357732804,1744399945008,-934.1242,0.000199,2]
[357732805,1744399945032,-89.52781229,0.000199,2]
[357732806,1744399960433,-65.16356764,0.000199,2]
[357732807,1744399960456,-204.7754036,0.000199,2]
[357732808,1744399960479,-30.06102876,0.000199,2]
[357732809,1744399970821,-302.15,0.000199,2]
[357732810,1744399976179,-500.0,0.000199,2]
[357732811,1744399977693,-887.55639744,0.000199,2]
[357732840,1744400730780,3653.27,0.00013699,2]
[357732841,1744400731233,3653.27,0.00013699,2]
[357732842,1744400731551,3653.27,0.00013699,2]
[357732843,1744400731923,3653.27,0.00013699,2]
[357732844,1744400732755,305.39,0.00013699,2]
[357732845,1744400732777,3347.88,0.00013699,2]
[357732846,1744400733249,3653.27,0.00013699,2]
[357732847,1744400733634,3653.27,0.00013699,2]
[357732848,1744400735526,3653.27,0.00013699,2]
[357732849,1744400735908,3653.27,0.00013699,2]
[357732850,1744400736414,3653.27,0.00013699,2]
[357732851,1744400736801,1101.16550657,0.00013699,2]
[357732852,1744400736824,2552.10449343,0.00013699,2]
[357732853,1744400737229,3653.27,0.00013699,2]
[357732854,1744400737593,3653.27,0.00013699,2]
[357732855,1744400737923,141.35550657,0.00013699,2]
[357732856,1744400737943,3511.91449343,0.00013699,2]
[357732857,1744400738289,3653.27,0.00013699,2]
[357732858,1744400738864,2834.81550657,0.00013699,2]
[357732859,1744400738888,818.45449343,0.00013699,2]
[357732860,1744400739213,185.02435598,0.00013699,2]
[357732861,1744400739234,3468.24564402,0.00013699,2]
[357732862,1744400739518,3653.27,0.00013699,2]
[357732863,1744400739868,2060.02986255,0.00013699,2]
[357732864,1744400739890,1593.24013745,0.00013699,2]
[357732865,1744400740660,3653.31020817,0.00013699,2]
[357732872,1744401031507,-196.34138022,0.000198,2]
[357732873,1744401031517,-268.929,0.00019899,2]
[357732874,1744401031528,-407.04961978,0.00019899,2]
[357732875,1744401031560,-209.68628022,0.00019899,2]
[357732876,1744401031570,-300.0,0.00019899,2]
[357732877,1744401031580,-378.92696366,0.00019899,2]
[357732878,1744401031589,-1942.53299214,0.000199,2]
[357732879,1744401031601,-656.71050786,0.000199,2]
[357732880,1744401031610,-1000.0,0.000199,2]
[357732881,1744401031620,-119.88409214,0.000199,2]
[357732882,1744401031631,-489.77520786,0.000199,2]
[357732883,1744401031640,-290.28549066,0.000199,2]
[357732884,1744401031650,-277.33421121,0.000199,2]
[357732885,1744401031659,-364.9361,0.000199,2]
[357732886,1744401031668,-150.01320832,0.000199,2]
[357732887,1744401031677,-7265.03240025,0.000199,2]
[357732888,1744401031689,-10328.65569975,0.000199,2]
[357732889,1744401031698,-20699.7263,0.000199,2]
[357732890,1744401031707,-1507.0598,0.000199,2]
[357732891,1744401031716,-181.92149554,0.000199,2]
[357732892,1744401031727,-11865.88730504,0.000199,2]
[357732893,1744401031736,-504.35525356,0.00019973,2]
[357732894,1744401031745,-500.0,0.00019973,2]
[357732895,1744401031754,-185.02435598,0.00019973,2]
[357732896,1744401031762,-172.4197635,0.0001999,2]
[357732897,1744401031772,-172.4197635,0.0001999,2]
[357732898,1744401031781,-172.4197635,0.0001999,2]
[357732899,1744401031791,-378.79,0.0001999,2]
[357732900,1744401031799,-378.79,0.0001999,2]
[357732901,1744401031808,-378.79,0.0001999,2]
[357732902,1744401031818,-378.79,0.0001999,2]
[357732903,1744401031827,-378.79,0.0001999,2]
[357732904,1744401031836,-378.79,0.0001999,2]
[357732905,1744401031846,-378.79,0.0001999,2]
[357732906,1744401031855,-378.79,0.0001999,2]
[357732907,1744401031865,-378.79,0.0001999,2]
[357732908,1744401031874,-378.79,0.0001999,2]
[357732909,1744401031883,-1000.0,0.00019999,2]
[357732910,1744401031893,-380.97164123,0.00019999,2]
[357732911,1744401031902,-236.63453605,0.00019999,2]
[357732912,1744401031911,-500.0,0.00019999,2]
[357732913,1744401031921,-500.0,0.00019999,2]
[357732914,1744401031930,-500.0,0.00019999,2]
[357732915,1744401031940,-500.0,0.00019999,2]
[357732916,1744401031949,-500.0,0.00019999,2]
[357732917,1744401031959,-191.16374897,0.00019999,2]
[357732918,1744401031969,-500.0,0.00019999,2]
[357732919,1744401031979,-500.0,0.00019999,2]
[357732920,1744401031988,-500.0,0.00019999,2]
[357732921,1744401031998,-177.90001696,0.00019999,2]
[357732922,1744401032008,-500.0,0.00019999,2]
[357732923,1744401032017,-500.0,0.00019999,2]
[357732924,1744401032027,-500.0,0.00019999,2]
[357732925,1744401032037,-500.0,0.00019999,2]
[357732926,1744401032046,-500.0,0.00019999,2]
[357732927,1744401032055,-500.0,0.00019999,2]
[357732928,1744401032065,-500.0,0.00019999,2]
[357732929,1744401032074,-500.0,0.00019999,2]
[357732930,1744401032083,-500.0,0.00019999,2]
[357732931,1744401032093,-500.0,0.00019999,2]
[357732932,1744401032102,-500.0,0.00019999,2]
[357732933,1744401032111,-500.0,0.00019999,2]
[357732934,1744401032120,-500.0,0.00019999,2]
[357732935,1744401032129,-500.0,0.00019999,2]
[357732936,1744401032139,-529.73792248,0.00019999,2]
[357732937,1744401032149,-500.0,0.00019999,2]
[357732938,1744401032158,-569808.92197597,0.0002,2]
[357732939,1744401032174,-320.41738675,0.0002,2]
[357732982,1744401035941,-312.82,0.0002,2]
[357732984,1744401035952,-336656.9758553,0.0002,2]
[357732986,1744401035963,-252.2,0.0002,2]
[357732988,1744401035979,-540.7637688,0.0002,2]
[357732991,1744401035990,-546.70831491,0.0002,2]
[357733122,1744401037523,-11586.63019714,0.0002,2]
[357733123,1744401037535,-688942.08718791,0.0002,2]
[357733124,1744401037547,-31368.87052349,0.0002,2]
[357733125,1744401037558,-1819.13671305,0.0002,2]
[357733126,1744401037569,-6233.63623253,0.0002,2]
[357733127,1744401037580,-2016.01853971,0.0002,2]
[357733128,1744401037591,-17981.71839985,0.0002,2]
[357733129,1744401037629,-1685.34410976,0.0002,2]
[357733130,1744401037737,-345.10370343,0.0002,2]
[357733131,1744401037749,-2403.78704119,0.0002,2]
[357733132,1744401037790,-30541.842756,0.0002,2]
[357733133,1744401037845,-11373.34699233,0.0002,2]
[357733139,1744401039687,-974.4447445,0.000198,2]
[357733140,1744401039696,-19231.27009259,0.0002,2]
[357733141,1744401039708,-1645.47510041,0.0002,2]
[357733153,1744401042565,-894.78695224,0.0002,2]
[357733154,1744401043427,-3010.41677843,0.0002,2]
[357733155,1744401043445,-1883.59137584,0.0002,2]
[357733158,1744401045747,-133963.99605958,0.0002,2]
[357733178,1744401359626,191.11,0.00027425,30]
[357733188,1744402231621,-200.0,0.00018905,2]
[357733189,1744402231632,-250.0,0.00019,2]
[357733190,1744402231642,-1069.81907589,0.00019152,2]
[357733191,1744402231673,-930.18092411,0.00019152,2]
[357733192,1744402231683,-421.16341047,0.00019228,2]
[357733193,1744402231694,-78.83658953,0.00019228,2]
[357733194,1744402231704,-200.0,0.00019515,2]
[357733195,1744402231714,-475.97689293,0.00019613,2]
[357733196,1744402231780,-524.02310707,0.00019613,2]
[357733197,1744402231791,-3349.78131982,0.00019712,2]
[357733198,1744402231887,-1247.11792128,0.00019712,2]
[357733423,1744402234518,-156.05154127,0.00019712,2]
[357733428,1744402237767,-1265.48695052,0.00019712,2]
[357733429,1744402237823,-25075.19252481,0.00019712,2]
[357733430,1744402237833,-154.2073299,0.00019712,2]
[357733431,1744402237843,-23900.0,0.00019712,2]
[357733432,1744402237852,-1808.24,0.00019738,2]
[357733433,1744402237862,-3255.15,0.0001981,2]
[357733434,1744402237871,-177.19,0.00019815,2]
[357733435,1744402237880,-200.0,0.00019815,2]
[357733436,1744402237890,-250.0,0.0001985,2]
[357733437,1744402237900,-13757.55,0.00019873,2]
[357733438,1744402237910,-21682.91246415,0.00019886,2]
[357733439,1744402237921,-1553.50792145,0.00019886,2]
[357733440,1744402237930,-1000.0,0.00019886,2]
[357733441,1744402237940,-21682.91246415,0.00019888,2]
[357733442,1744402237950,-21682.91246415,0.00019889,2]
[357733443,1744402237959,-18237.87498171,0.0001989,2]
[357733444,1744402237968,-21682.91246415,0.00019891,2]
[357733445,1744402237978,-21682.91246415,0.00019892,2]
[357733446,1744402237987,-21682.91246415,0.00019894,2]
[357733447,1744402237997,-21682.91246415,0.00019895,2]
[357733448,1744402238006,-21682.91246415,0.00019897,2]
[357733449,1744402238015,-21682.91246415,0.00019898,2]
[357733450,1744402238024,-3423.3012,0.000199,2]
[357733451,1744402238033,-1691.2143,0.000199,2]
[357733452,1744402238043,-1405.5238,0.000199,2]
[357733453,1744402238052,-466.74342603,0.000199,2]
[357733454,1744402238061,-150.01320829,0.000199,2]
[357733455,1744402238071,-421.90338906,0.000199,2]
[357733456,1744402238081,-14840.49959572,0.000199,2]
[357733457,1744402238090,-36543.99982894,0.000199,2]
[357733458,1744402238099,-203.00229618,0.000199,2]
[357733459,1744402238108,-1553.50792145,0.000199,2]
[357733460,1744402238119,-377.0,0.00019973,2]
[357733461,1744402238129,-500.0,0.00019973,2]
[357733462,1744402238138,-188.91524563,0.00019973,2]
[357733463,1744402238148,-311.73011261,0.00019973,2]
[357733464,1744402238157,-4332.8880031,0.00019986,2]
[357733465,1744402238167,-104169.8018987,0.00019986,2]
[357733466,1744402238176,-2105.281825,0.00019986,2]
[357733467,1744402238185,-6499.5549816,0.00019986,2]
[357733468,1744402238195,-175.95307137,0.0001999,2]
[357733470,1744402238204,-165.64417524,0.00019999,2]
[357733472,1744402238214,-500.0,0.00019999,2]
[357733474,1744402238223,-500.0,0.00019999,2]
[357733476,1744402238233,-500.0,0.00019999,2]
[357733484,1744402238382,-500.0,0.00019999,2]
[357733485,1744402238435,-500.0,0.00019999,2]
[357733486,1744402238445,-500.0,0.00019999,2]
[357733487,1744402238455,-310.03173757,0.00019999,2]
[357733488,1744402238465,-500.0,0.00019999,2]
[357733489,1744402238475,-500.0,0.00019999,2]
[357733490,1744402238485,-500.0,0.00019999,2]
[357733491,1744402238494,-500.0,0.00019999,2]
[357733492,1744402238503,-500.0,0.00019999,2]
[357733493,1744402238513,-825.60675412,0.00019999,2]
[357733494,1744402238522,-825.60675412,0.00019999,2]
[357733495,1744402238532,-825.60675412,0.00019999,2]
[357733496,1744402238541,-825.60675412,0.00019999,2]
[357733497,1744402238551,-825.60675412,0.00019999,2]
[357733498,1744402238560,-825.60675412,0.00019999,2]
[357733499,1744402238570,-825.60675412,0.00019999,2]
[357733500,1744402238579,-825.60675412,0.00019999,2]
[357733501,1744402238589,-825.60675412,0.00019999,2]
[357733502,1744402238598,-825.60675412,0.00019999,2]
[357733503,1744402238608,-825.60675412,0.00019999,2]
[357733504,1744402238618,-825.60675412,0.00019999,2]
[357733505,1744402238627,-825.60675412,0.00019999,2]
[357733506,1744402238637,-825.60675412,0.00019999,2]
[357733507,1744402238646,-820.79071471,0.00019999,2]
[357733508,1744402238655,-820.79071471,0.00019999,2]
[357733509,1744402238665,-820.79071471,0.00019999,2]
[357733510,1744402238674,-522679.24638869,0.0002,2]
[357733511,1744402238687,-433442.42589617,0.0002,2]
[357733512,1744402238698,-1676.58,0.0002,2]
[357733513,1744402238732,-14220.03120028,0.0002,2]
[357733514,1744402238747,-4129.43275167,0.0002,2]
[357733515,1744402238759,-58196.96562593,0.0002,2]
[357733516,1744402239017,181.77157691,0.000199,2]
[357733518,1744402240052,-758.79327156,0.000199,2]
[357733519,1744402240070,-516.6712998,0.000199,2]
[357733520,1744402240082,-552.31242,0.000199,2]
[357733521,1744402240121,-412.99258,0.000199,2]
[357733522,1744402240137,-19260.37131588,0.000199,2]
[357733523,1744402240153,-12692.64718613,0.0002,2]
[357733524,1744402240165,-901.4202829,0.0002,2]
[357733525,1744402240191,-9735.46515818,0.0002,2]
[357733526,1744402240202,-602.5561499,0.0002,2]
[357733527,1744402240245,-545.7393,0.0002,2]
[357733542,1744402242768,-11437.4921739,0.0002,2]
[357733543,1744402242989,-724.687446,0.0002,2]
[357733544,1744402243001,-4761.0296594,0.0002,2]
[357733545,1744402243012,-6660.35750267,0.0002,2]
[357733546,1744402243024,-8627.20691,0.0002,2]
[357733547,1744402243035,-698.384581,0.0002,2]
[357733548,1744402243046,-435.50221154,0.0002,2]
[357733549,1744402243058,-5733.94259137,0.0002,2]
[357733550,1744402243092,-294.14994472,0.0002,2]
[357733551,1744402243103,-1806.49803386,0.0002,2]
[357733556,1744402243994,-2503.04783889,0.0002,2]
[357733557,1744402244019,-621.448,0.0002,2]
[357733558,1744402244040,-262446.75978359,0.0002,2]
[357733559,1744402244060,-7570.05644601,0.0002,2]
[357733560,1744402244077,-4955.75025834,0.0002,2]
[357733561,1744402244100,-1801.52211714,0.0002,2]
[357733562,1744402244115,-2480.47007739,0.0002,2]
[357733563,1744402244135,-13601.93912539,0.0002,2]
[357733569,1744402245696,-18543.32461507,0.0002,2]
[357733570,1744402245714,-16561.82821772,0.0002,2]
[357733571,1744402245842,-1494.35,0.0002,2]
[357733572,1744402245889,-1316.65614488,0.0002,2]
[357733573,1744402245910,-1843.65503833,0.0002,2]
[357733574,1744402245929,-1518.67982264,0.0002,2]
[357733575,1744402245946,-8681.75599626,0.0002,2]
[357733576,1744402246018,-618494.62884546,0.0002,2]
[357733577,1744402246035,-1205314.6163198,0.0002,2]
[357733579,1744402246106,-3268.67656753,0.0002,2]
[357733580,1744402246123,-2560.6850601,0.0002,2]
[357733581,1744402246141,-398.46941812,0.0002,2]
[357733589,1744402361308,381.04,0.00027425,30]
[357733591,1744402370974,160.55823,0.0002,23]
[357734041,1744402690373,160.55823,0.0002,23]
[357735061,1744403003577,-175.55755143,0.000175,3]
[357735064,1744403009777,160.55823,0.0002,23]
[357735163,1744403237565,-160.55823,0.00025,23]
[357735289,1744403315377,160.55823,0.000248,34]
[357735292,1744403319550,1045.81227433,0.000149,2]
[357735310,1744403431881,-289.89542101,0.00019152,2]
[357735311,1744403431939,-152.43457899,0.00019152,2]
[357735312,1744403431949,-250.0,0.00019426,2]
[357735313,1744403431959,-216.5305851,0.000196,2]
[357735314,1744403431968,-1773.18,0.00019639,2]
[357735315,1744403431978,-992.8747004,0.00019745,2]
[357735316,1744403431987,-302.34,0.00019845,2]
[357735317,1744403431997,-1039.033,0.00019899,2]
[357735318,1744403432006,-26468.39966721,0.000199,2]
[357735319,1744403432040,-407.0,0.000199,2]
[357735386,1744403437917,-350.56693279,0.000199,2]
[357735387,1744403437927,-408.182,0.000199,2]
[357735388,1744403437936,-150.01320829,0.000199,2]
[357735389,1744403437945,-427.27001394,0.000199,2]
[357735390,1744403437955,-281.26892604,0.000199,2]
[357735391,1744403437964,-195.00829306,0.000199,2]
[357735392,1744403437973,-400.75000206,0.00019973,2]
[357735393,1744403437983,-7089.2547444,0.00019986,2]
[357735394,1744403437991,-748.12558234,0.00019986,2]
[357735395,1744403438003,-5559.25206961,0.00019986,2]
[357735396,1744403438085,-468.40396298,0.00019986,2]
[357735397,1744403438143,-1942.4,0.00019986,2]
[357735398,1744403438155,-822.49017547,0.00019986,2]
[357735399,1744403438170,-6383.92637862,0.00019986,2]
[357735400,1744403438206,-8916.57994639,0.00019986,2]
[357735401,1744403438218,-316.93927259,0.00019986,2]
[357735456,1744403440054,-1137.98365227,0.00019986,2]
[357735458,1744403440067,-293.7236204,0.00019986,2]
[357735460,1744403440079,-5344.79081672,0.00019986,2]
[357735464,1744403440113,-3976.2,0.00019986,2]
[357735485,1744403440383,-55999.21342381,0.00019986,2]
[357735487,1744403440393,-5816.7406797,0.00019986,2]
[357735489,1744403440403,-175.95307138,0.0001999,2]
[357735491,1744403440413,-151.0,0.00019999,2]
[357735493,1744403440423,-500.0,0.00019999,2]
[357735495,1744403440432,-500.0,0.00019999,2]
[357735497,1744403440442,-500.0,0.00019999,2]
[357735499,1744403440451,-500.0,0.00019999,2]
[357735501,1744403440461,-500.0,0.00019999,2]
[357735503,1744403440470,-500.0,0.00019999,2]
[357735505,1744403440480,-195.01243064,0.00019999,2]
[357735507,1744403440489,-500.0,0.00019999,2]
[357735509,1744403440499,-500.0,0.00019999,2]
[357735511,1744403440508,-500.0,0.00019999,2]
[357735513,1744403440517,-500.0,0.00019999,2]
[357735515,1744403440526,-500.0,0.00019999,2]
[357735517,1744403440535,-500.0,0.00019999,2]
[357735519,1744403440544,-500.0,0.00019999,2]
[357735521,1744403440553,-500.0,0.00019999,2]
[357735523,1744403440563,-500.0,0.00019999,2]
[357735525,1744403440572,-500.0,0.00019999,2]
[357735527,1744403440581,-500.0,0.00019999,2]
[357735529,1744403440590,-500.0,0.00019999,2]
[357735531,1744403440599,-500.0,0.00019999,2]
[357735532,1744403440608,-500.0,0.00019999,2]
[357735534,1744403440617,-500.0,0.00019999,2]
[357735536,1744403440626,-500.0,0.00019999,2]
[357735538,1744403440635,-500.0,0.00019999,2]
[357735540,1744403440644,-551.06459515,0.00019999,2]
[357735543,1744403440654,-500.0,0.00019999,2]
[357735545,1744403440667,-500.0,0.00019999,2]
[357735547,1744403440676,-150.0,0.00019999,2]
[357735549,1744403440686,-500.0,0.00019999,2]
[357735551,1744403440696,-500.0,0.00019999,2]
[357735553,1744403440705,-1729561.04104288,0.0002,2]
[357735555,1744403440714,-516.6958405,0.0002,2]
[357735557,1744403440724,-124200.81422278,0.0002,2]
[357735559,1744403440733,-31093.6302577,0.0002,2]
[357735561,1744403440742,-440.78139981,0.0002,2]
[357735563,1744403440752,-1352419.78031287,0.0002,2]
[357735565,1744403440761,-706.92122751,0.0002,2]
[357735567,1744403440771,-1972.10072497,0.0002,2]
[357735569,1744403440780,-1479.11976009,0.0002,2]
[357735571,1744403440789,-4292.74493663,0.0002,2]
[357735573,1744403440799,-33374.53717832,0.0002,2]
[357735575,1744403440808,-1804.6,0.0002,2]
[357735577,1744403440817,-6653.0,0.0002,2]
[357735579,1744403440827,-3950.0,0.0002,2]
[357735581,1744403440837,-1248.56912275,0.0002,2]
[357735583,1744403440846,-11812.5796405,0.0002,2]
[357735585,1744403440855,-1007.42387905,0.0002,2]
[357735587,1744403440865,-1748.49019469,0.0002,2]
[357735589,1744403440875,-2000.0,0.0002,4]
[357735591,1744403440884,-151.44,0.0002,2]